{"text_format":"1","workbook":"xlsx","n_sheets":2,"sheets":["main","database"],"not_rendered":{"charts":0,"images":1,"macros":0,"external_links":0,"defined_names":6,"comments":0,"pivot_tables":0},"unopened":[],"bounds":{"document_bytes":16777216,"sheet_cells":100000,"rows_first":2000,"rows_last":500,"rows_between":2000,"halvings":0,"cell_chars":16384,"cell_head_chars":4096},"cells_cut":0,"cells_raw":0,"read":"whole","date_system":"1900"}

{"sheet":"main","index":0,"n_rows":102,"n_cols":12,"rows_kept":102,"cut":false,"hidden":false,"merged":[]}
[]
[null,"التاريخ :","2021-01-01",null,null,null,null,null,null,null,null,"م.التشغيل"]
[null,"القيد رقم :",1,null,null,null,null,null,null,null,null,"م.عمومية وإدارية"]
[null,null,null,null,{"$f":"SUM(E6:E100)","v":2500},{"$f":"SUM(F6:F100)","v":2500},"إجمالي القيد",null,null,null,null,"لا توزع"]
[null,"رقم الحساب","اسم الحساب","اسم المركز","مدين","دائن","الشرح","المستند","حالة الادخال",null,null,"ماكينة الليزر"]
[null,1111,"يوسف1","م.عمومية وإدارية",100,null,1,1,{"$f":"IF(AND(B6>0,D6>0,G6>0)*(OR(E6>0,F6>0)),1,0)","v":1},null,null,"فرن الدهان"]
[null,1112,"يوسف2","لا توزع",200,null,1,1,{"$f":"IF(AND(B7>0,D7>0,G7>0)*(OR(E7>0,F7>0)),1,0)","v":1},null,null,"القيد الافتتاحي"]
[null,1113,"يوسف3","لا توزع",300,null,1,1,{"$f":"IF(AND(B8>0,D8>0,G8>0)*(OR(E8>0,F8>0)),1,0)","v":1}]
[null,1114,"يوسف4","لا توزع",400,null,1,1,{"$f":"IF(AND(B9>0,D9>0,G9>0)*(OR(E9>0,F9>0)),1,0)","v":1}]
[null,1115,"يوسف5","لا توزع",400,null,1,1,1]
[null,1115,"يوسف5","لا توزع",500,null,1,1,{"$f":"IF(AND(B11>0,D11>0,G11>0)*(OR(E11>0,F11>0)),1,0)","v":1}]
[null,1114,"يوسف4","لا توزع",600,null,1,1,1]
[null,1111,"يوسف1","لا توزع",null,2500,12,1,1]
[null,null,null,null,null,null,null,null,0]
[null,null,null,null,null,null,null,null,0]
[null,null,null,null,null,null,null,null,0]
[null,null,null,null,null,null,null,null,0]
[null,null,null,null,null,null,null,null,0]
[null,null,null,null,null,null,null,null,0]
[null,null,null,null,null,null,null,null,0]
[null,null,null,null,null,null,null,null,0]
[null,null,null,null,null,null,null,null,0]
[null,null,null,null,null,null,null,null,0]
[null,null,null,null,null,null,null,null,0]
[null,null,null,null,null,null,null,null,0]
[null,null,null,null,null,null,null,null,0]
[null,null,null,null,null,null,null,null,0]
[null,null,null,null,null,null,null,null,0]
[null,null,null,null,null,null,null,null,0]
[null,null,null,null,null,null,null,null,0]
[null,null,null,null,null,null,null,null,0]
[null,null,null,null,null,null,null,null,0]
[null,null,null,null,null,null,null,null,0]
[null,null,null,null,null,null,null,null,0]
[null,null,null,null,null,null,null,null,0]
[null,null,null,null,null,null,null,null,0]
[null,null,null,null,null,null,null,null,0]
[null,null,null,null,null,null,null,null,{"$f":"IF(AND(B38>0,D38>0,G38>0)*(OR(E38>0,F38>0)),1,0)","v":0}]
[null,null,null,null,null,null,null,null,0]
[null,null,null,null,null,null,null,null,0]
[null,null,null,null,null,null,null,null,0]
[null,null,null,null,null,null,null,null,0]
[null,null,null,null,null,null,null,null,0]
[null,null,null,null,null,null,null,null,0]
[null,null,null,null,null,null,null,null,0]
[null,null,null,null,null,null,null,null,0]
[null,null,null,null,null,null,null,null,0]
[null,null,null,null,null,null,null,null,0]
[null,null,null,null,null,null,null,null,0]
[null,null,null,null,null,null,null,null,0]
[null,null,null,null,null,null,null,null,0]
[null,null,null,null,null,null,null,null,0]
[null,null,null,null,null,null,null,null,0]
[null,null,null,null,null,null,null,null,0]
[null,null,null,null,null,null,null,null,0]
[null,null,null,null,null,null,null,null,0]
[null,null,null,null,null,null,null,null,0]
[null,null,null,null,null,null,null,null,0]
[null,null,null,null,null,null,null,null,0]
[null,null,null,null,null,null,null,null,0]
[null,null,null,null,null,null,null,null,0]
[null,null,null,null,null,null,null,null,0]
[null,null,null,null,null,null,null,null,0]
[null,null,null,null,null,null,null,null,0]
[null,null,null,null,null,null,null,null,0]
[null,null,null,null,null,null,null,null,0]
[null,null,null,null,null,null,null,null,0]
[null,null,null,null,null,null,null,null,0]
[null,null,null,null,null,null,null,null,0]
[null,null,null,null,null,null,null,null,{"$f":"IF(AND(B70>0,D70>0,G70>0)*(OR(E70>0,F70>0)),1,0)","v":0}]
[null,null,null,null,null,null,null,null,0]
[null,null,null,null,null,null,null,null,0]
[null,null,null,null,null,null,null,null,0]
[null,null,null,null,null,null,null,null,0]
[null,null,null,null,null,null,null,null,0]
[null,null,null,null,null,null,null,null,0]
[null,null,null,null,null,null,null,null,0]
[null,null,null,null,null,null,null,null,0]
[null,null,null,null,null,null,null,null,0]
[null,null,null,null,null,null,null,null,0]
[null,null,null,null,null,null,null,null,0]
[null,null,null,null,null,null,null,null,0]
[null,null,null,null,null,null,null,null,0]
[null,null,null,null,null,null,null,null,0]
[null,null,null,null,null,null,null,null,0]
[null,null,null,null,null,null,null,null,0]
[null,null,null,null,null,null,null,null,0]
[null,null,null,null,null,null,null,null,0]
[null,null,null,null,null,null,null,null,0]
[null,null,null,null,null,null,null,null,0]
[null,null,null,null,null,null,null,null,0]
[null,null,null,null,null,null,null,null,0]
[null,null,null,null,null,null,null,null,0]
[null,null,null,null,null,null,null,null,0]
[null,null,null,null,null,null,null,null,0]
[null,null,null,null,null,null,null,null,0]
[null,null,null,null,null,null,null,null,0]
[null,null,null,null,null,null,null,null,0]
[null,null,null,null,null,null,null,null,0]
[null,null,null,null,null,null,null,null,0]
[]
[null,null,"المحاسب :"]

{"sheet":"database","index":1,"n_rows":12,"n_cols":10,"rows_kept":12,"cut":false,"hidden":false,"merged":[]}
[]
[]
[null,null,null,null,null,{"$f":"G3-H3","v":0},{"$f":"SUM(G5:G4964)","v":2500},{"$f":"SUM(H5:H4964)","v":2500}]
[null,"رقم القيد","التاريخ","رقم الحساب","اسم الحساب","اسم المركز","مدين","دائن","الشرح","المستند"]
[null,1,"2021-01-01",1111,"يوسف1","م.عمومية وإدارية",100,null,1,1]
[null,1,"2021-01-01",1112,"يوسف2","لا توزع",200,null,1,1]
[null,1,"2021-01-01",1113,"يوسف3","لا توزع",300,null,1,1]
[null,1,"2021-01-01",1114,"يوسف4","لا توزع",400,null,1,1]
[null,1,"2021-01-01",1115,"يوسف5","لا توزع",400,null,1,1]
[null,1,"2021-01-01",1115,"يوسف5","لا توزع",500,null,1,1]
[null,1,"2021-01-01",1114,"يوسف4","لا توزع",600,null,1,1]
[null,1,"2021-01-01",1111,"يوسف1","لا توزع",null,2500,12,1]